fUST/lending_fUST_20260206
["ID","MTS","AMOUNT","RATE_DAILY","PERIOD"]
[404603082,1770325840290,-250.0,0.000396,14]
[404603084,1770325840299,-250.0,0.000396,14]
[404603086,1770325840311,-250.0,0.000396,14]
[404603087,1770325840320,-221.2,0.000396,14]
[404603090,1770325840330,-38000.0,0.000396,15]
[404603092,1770325840339,-757.13,0.000396,30]
[404603093,1770325840349,-5936.55147662,0.00039603,3]
[404603095,1770325840359,-155.0,0.00039611,2]
[404603097,1770325840369,-350.24354005,0.00039611,15]
[404603099,1770325840378,-163.52808517,0.00039611,7]
[404603101,1770325840388,-309.33005331,0.00039611,15]
[404603103,1770325840397,-500.0,0.00039611,15]
[404603105,1770325840406,-500.0,0.00039611,15]
[404603107,1770325840415,-500.0,0.00039611,15]
[404603109,1770325840424,-500.0,0.00039611,15]
[404603111,1770325840434,-500.0,0.00039611,15]
[404603113,1770325840443,-363.45570437,0.00039611,7]
[404603115,1770325840451,-227.07764665,0.00039611,15]
[404603117,1770325840461,-500.0,0.00039611,7]
[404603119,1770325840470,-539.70374465,0.00039611,15]
[404603121,1770325840480,-500.0,0.00039611,15]
[404603123,1770325840489,-256.20401745,0.00039611,15]
[404603125,1770325840498,-499.760384,0.00039612,120]
[404603133,1770325840613,-499.760384,0.00039612,120]
[404603134,1770325840625,-499.760384,0.00039612,120]
[404603135,1770325840635,-499.760384,0.00039612,120]
[404603136,1770325840644,-153.250577,0.00039612,120]
[404603137,1770325840654,-153.250577,0.00039612,120]
[404603138,1770325840663,-153.250577,0.00039612,120]
[404603139,1770325840672,-153.250577,0.00039612,120]
[404603140,1770325840681,-151.0,0.00039612,120]
[404603141,1770325840690,-151.0,0.00039612,120]
[404603142,1770325840701,-191.028453,0.00039612,120]
[404603143,1770325840711,-151.0,0.00039612,120]
[404603144,1770325840720,-151.0,0.00039612,120]
[404603145,1770325840729,-189.132729,0.00039612,120]
[404603146,1770325840738,-151.0,0.00039612,120]
[404603147,1770325840746,-156.362279,0.00039612,120]
[404603148,1770325840756,-151.0,0.00039612,7]
[404603150,1770325840766,-151.0,0.00039612,7]
[404603152,1770325840775,-151.0,0.00039612,7]
[404603154,1770325840784,-200.868053,0.00039612,7]
[404603156,1770325840794,-497.77814,0.00039612,28]
[404603159,1770325840803,-497.77814,0.00039612,28]
[404603161,1770325840817,-497.77814,0.00039612,28]
[404603162,1770325840836,-497.77814,0.00039612,28]
[404603165,1770325840846,-497.77814,0.00039612,28]
[404603167,1770325840856,-497.77814,0.00039612,28]
[404603169,1770325840867,-497.77814,0.00039612,28]
[404603170,1770325840876,-497.77814,0.00039612,28]
[404603172,1770325840885,-417.791962,0.00039612,120]
[404603174,1770325840896,-417.791962,0.00039612,120]
[404603176,1770325840905,-417.791962,0.00039612,120]
[404603179,1770325840915,-417.791962,0.00039612,120]
[404603180,1770325840924,-417.791962,0.00039612,120]
[404603183,1770325840935,-417.791962,0.00039612,120]
[404603185,1770325840944,-417.791962,0.00039612,120]
[404603187,1770325840952,-417.791962,0.00039612,120]
[404603188,1770325840962,-353.673473,0.00039612,120]
[404603190,1770325840972,-353.673473,0.00039612,120]
[404603192,1770325840980,-353.673473,0.00039612,120]
[404603194,1770325840989,-353.673473,0.00039612,120]
[404603196,1770325840999,-353.673473,0.00039612,120]
[404603198,1770325841008,-353.673473,0.00039612,120]
[404603200,1770325841018,-353.673473,0.00039612,120]
[404603202,1770325841027,-353.673473,0.00039612,120]
[404603204,1770325841037,-376.8200359,0.00039612,7]
[404603206,1770325841046,-151.0,0.00039613,60]
[404603208,1770325841055,-160.800759,0.00039613,120]
[404603210,1770325841072,-1847.314657,0.00039613,120]
[404603213,1770325841081,-1847.314657,0.00039613,120]
[404603215,1770325841091,-1847.314657,0.00039613,120]
[404603217,1770325841100,-1847.314657,0.00039613,120]
[404603218,1770325841111,-164.139323,0.00039613,30]
[404603221,1770325841120,-151.0,0.00039613,120]
[404603223,1770325841130,-151.0,0.00039613,120]
[404603225,1770325841139,-151.0,0.00039613,120]
[404603227,1770325841151,-151.0,0.00039613,120]
[404603228,1770325841160,-158.749187,0.00039613,120]
[404603231,1770325841175,-151.0,0.00039613,120]
[404603232,1770325841189,-2133.2828319,0.00039614,2]
[404603234,1770325841207,-3305.5024724,0.00039614,2]
[404603237,1770325841217,-183.1998686,0.00039614,2]
[404603238,1770325841229,-1041.66666667,0.00039617,30]
[404603240,1770325841238,-1041.66666667,0.00039617,7]
[404603242,1770325841248,-1041.66666667,0.00039617,120]
[404603244,1770325841258,-1041.66666667,0.00039619,3]
[404603246,1770325841268,-741.26793723,0.0003962,7]
[404603248,1770325841278,-151.0,0.00039647,14]
[404603250,1770325841292,-151.0,0.00039647,14]
[404603252,1770325841310,-335.0,0.00039647,14]
[404603254,1770325841321,-317.49080268,0.00039647,14]
[404603256,1770325841332,-376.407107,0.00039648,120]
[404603258,1770325841343,-376.407107,0.00039648,120]
[404603260,1770325841353,-376.407107,0.00039648,120]
[404603262,1770325841362,-376.407107,0.00039648,120]
[404603264,1770325841372,-376.407107,0.00039648,120]
[404603266,1770325841380,-376.407107,0.00039648,120]
[404603268,1770325841389,-376.407107,0.00039648,120]
[404603270,1770325841398,-376.407107,0.00039648,120]
[404603272,1770325841408,-151.0,0.00039648,120]
[404603274,1770325841417,-151.0,0.00039648,120]
[404603276,1770325841426,-151.0,0.00039648,30]
[404603278,1770325841434,-2930190.9917857,0.00039648,30]
[404603280,1770325841449,-1811.19382639,0.00039648,30]
[404603308,1770325841700,-250.0,0.00037643,2]
[404603310,1770325841710,-151.0,0.00039648,30]
[404603312,1770325841719,-5099.0043721,0.00039648,30]
[404603314,1770325841730,-8638.50567127,0.00039648,30]
[404603647,1770325845104,-250.0,0.00037643,2]
[404603649,1770325845114,-250.0,0.00037643,2]
[404603651,1770325845124,-250.0,0.00037643,2]
[404603654,1770325845135,-250.0,0.00037643,2]
[404603656,1770325845145,-2155.0,0.00039648,30]
[404603659,1770325845164,-1021.08288828,0.00039648,30]
[404603770,1770325846195,-250.0,0.00037643,2]
[404603772,1770325846205,-58.617,0.00039495,7]
[404603775,1770325846216,-682.65093723,0.00039495,7]
[404603777,1770325846226,-4750.92811841,0.00039638,10]
[404603779,1770325846238,-1274.16188159,0.00039638,10]
[404603781,1770325846247,-399.808307,0.00039648,120]
[404603783,1770325846256,-552.22521044,0.00039648,30]
[404603785,1770325846267,-567.6937,0.00039648,30]
[404603787,1770325846278,-572.589,0.00039648,30]
[404603796,1770325846377,-399.808307,0.00039648,120]
[404603797,1770325846386,-219888.4553839,0.00039648,30]
[404603798,1770325846397,-366.0,0.00039648,30]
[404605370,1770325864147,-250.0,0.0002646,2]
[404605642,1770325866942,500.0,0.00013273,2]
[404606853,1770325881462,206.32990251,0.00013273,2]
[404610562,1770325923508,275.05842136,0.00013273,2]
[404610614,1770325924953,500.0,0.00013699,2]
[404610615,1770325938620,-400.99999997,0.00014247,2]
[404610659,1770326050123,440.91853521,0.00013699,2]
[404610660,1770326052972,3162.1157472,0.0001401,2]
[404610662,1770326106609,278.80286206,0.00013273,2]
[404610664,1770326223401,585.51407818,0.00013699,2]
[404610668,1770326402113,161.59,0.00013,2]
[404610669,1770326403293,161.58,0.00013011,2]
[404610670,1770326466916,500.0,0.00013273,2]
[404610671,1770326526212,500.0,0.00013273,2]
[404610672,1770326554366,336.7,0.0001405,2]
[404610677,1770326583475,500.0,0.00013273,2]
[404611471,1770326962856,500.0,0.00013273,2]
[404611502,1770327032133,-487.8622746,0.00015037,2]
[404611503,1770327032143,-76.92316803,0.00015189,2]
[404611504,1770327032154,-73.07683197,0.00015189,2]
[404611505,1770327032163,-736.59766754,0.00015342,2]
[404611506,1770327032174,-962.90483742,0.00015342,2]
[404611507,1770327032186,-1249.50691396,0.00015342,2]
[404611508,1770327032197,-560.14732194,0.00015342,2]
[404611594,1770327038288,-300.29325914,0.00015342,2]
[404611595,1770327038299,-177.0,0.00017189,2]
[404611596,1770327038308,-204.0,0.00019189,2]
[404611597,1770327038318,-3923.56942903,0.0002,7]
[404611598,1770327038328,-250.0,0.00020202,2]
[404611599,1770327038338,-300.0,0.00020999,2]
[404611600,1770327038347,-16321.22200626,0.00021,2]
[404611601,1770327038357,-231.0,0.00021189,2]
[404611602,1770327038367,-150.0,0.00021918,2]
[404611603,1770327038376,-300.0,0.00022466,2]
[404611604,1770327038386,-450.0,0.00023014,2]
[404611605,1770327038395,-258.0,0.00023189,2]
[404611606,1770327038404,-600.0,0.00023562,2]
[404611608,1770327038414,-1561.29461787,0.00024,60]
[404611609,1770327038423,-750.0,0.0002411,2]
[404611610,1770327038435,-443.85788248,0.00024658,2]
[404611611,1770327038444,-7068.0966757,0.00024774,2]
[404611612,1770327038454,-285.0,0.00025189,2]
[404611613,1770327038463,-180.95169948,0.00026972,2]
[404611614,1770327038476,-312.0,0.00027189,2]
[404611615,1770327038485,-1041.66666667,0.00029,10]
[404611616,1770327038496,-1041.66666667,0.00029,10]
[404611617,1770327038506,-339.0,0.00029189,2]
[404611618,1770327038515,-425.12840331,0.00029388,2]
[404611619,1770327038525,-425.12840331,0.00029685,2]
[404611620,1770327038535,-340.10272265,0.00029833,10]
[404611621,1770327038544,-5193.68783783,0.0003,2]
[404611622,1770327038554,-176.4250532,0.00030142,10]
[404611623,1770327038563,-340.10272265,0.00030788,10]
[404611624,1770327038572,-595.4788201,0.00030957,2]
[404611625,1770327038582,-909.3791662,0.00031,120]
[404611626,1770327038592,-366.0,0.00031189,2]
[404611627,1770327038601,-340.10272265,0.00031743,10]
[404611628,1770327038610,-176.454,0.00032518,32]
[404611629,1770327038620,-340.10272265,0.00032698,10]
[404611630,1770327038629,-205.1998551,0.00032723,2]
[404611631,1770327038640,-380.0,0.00032821,2]
[404611632,1770327038649,-393.0,0.00033189,120]
[404611633,1770327038659,-495.40797983,0.000332,117]
[404611634,1770327038670,-495.40797981,0.000332,117]
[404611635,1770327038679,-495.40797981,0.000332,117]
[404611636,1770327038689,-340.10272265,0.00033652,27]
[404611637,1770327038699,-500.0,0.00033787,7]
[404611638,1770327038709,-310.69990771,0.00033787,7]
[404611639,1770327038718,-500.0,0.00033787,7]
[404611640,1770327038730,-500.0,0.00033787,7]
[404611641,1770327038740,-421.23900759,0.00033787,7]
[404611642,1770327038750,-500.0,0.00033787,7]
[404611643,1770327038759,-500.0,0.00033787,7]
[404611644,1770327038770,-500.0,0.00033787,7]
[404611645,1770327038780,-227.07764665,0.00033787,7]
[404611646,1770327038790,-256.20401745,0.00033787,7]
[404611647,1770327038799,-3289.08542678,0.00033788,60]
[404611648,1770327038809,-495.40797981,0.00033959,120]
[404611649,1770327038819,-1071.86187618,0.00033967,2]
[404611650,1770327038828,-340.10272265,0.00034607,30]
[404611651,1770327038838,-205.79390121,0.00035,2]
[404611652,1770327038848,-4200.04094075,0.00035,5]
[404611653,1770327038857,-420.0,0.00035189,120]
[404611654,1770327038867,-340.10272265,0.00035562,30]
[404611655,1770327038877,-3179.0244212,0.00036,30]
[404611656,1770327038886,-616.49571963,0.00036869,7]
[404611657,1770327038896,-741.26793723,0.00036869,7]
[404611658,1770327038906,-174.29,0.00036908,60]
[404611659,1770327038916,-1905.53222431,0.00036977,2]
[404611660,1770327038926,-174.29,0.00037008,60]
[404611661,1770327038935,-174.29,0.00037108,60]
[404611662,1770327038944,-447.0,0.00037189,120]
[404611663,1770327038954,-174.29,0.00037208,60]
[404611664,1770327038963,-160.453473,0.0003723,60]
[404611665,1770327038976,-2779.202072,0.0003723,60]
[404611666,1770327038992,-174.33795831,0.00037308,60]
[404611667,1770327039008,-332.26051889,0.00037576,120]
[404611668,1770327039018,-200.0,0.00037605,2]
[404611669,1770327039029,-4410.01,0.0003762,10]
[404611670,1770327039040,-182.548747,0.0003762,60]
[404611671,1770327039050,-2662.192118,0.0003762,60]
[404611672,1770327039060,-4067.3,0.00037623,10]
[404611673,1770327039070,-202.14,0.00037624,3]
[404611674,1770327039080,-6350.42,0.00037624,10]
[404611675,1770327039090,-5292.01,0.00037624,10]
[404611676,1770327039101,-2000.0,0.0003763,2]
[404611677,1770327039111,-250.0,0.0003763,2]
[404611678,1770327039121,-2000.0,0.0003763,2]
[404611679,1770327039130,-500.0,0.0003763,2]
[404611680,1770327039140,-500.0,0.0003763,2]
[404611681,1770327039150,-250.0,0.0003763,2]
[404611682,1770327039159,-250.0,0.0003763,2]
[404611683,1770327039169,-250.0,0.0003763,2]
[404611684,1770327039178,-250.0,0.0003763,2]
[404611685,1770327039187,-500.0,0.0003763,2]
[404611686,1770327039197,-2000.0,0.0003763,2]
[404611687,1770327039207,-2000.0,0.0003763,2]
[404611688,1770327039216,-2000.0,0.0003763,2]
[404611689,1770327039230,-2000.0,0.0003763,2]
[404611690,1770327039240,-250.0,0.0003763,2]
[404611691,1770327039249,-1000.0,0.0003763,2]
[404611692,1770327039258,-2000.0,0.0003763,2]
[404611693,1770327039274,-250.0,0.0003763,2]
[404611694,1770327039284,-1000.0,0.0003763,2]
[404611695,1770327039293,-250.0,0.0003763,2]
[404611696,1770327039303,-2000.0,0.0003763,2]
[404611697,1770327039312,-250.0,0.0003763,2]
[404611698,1770327039322,-422.56723403,0.0003763,2]
[404611699,1770327039332,-250.0,0.0003763,2]
[404611700,1770327039342,-2000.0,0.0003763,2]
[404611701,1770327039352,-201.93286099,0.0003763,2]
[404611702,1770327039361,-250.0,0.0003763,2]
[404611703,1770327039371,-250.0,0.0003763,2]
[404611704,1770327039380,-2000.0,0.0003763,2]
[404611705,1770327039390,-209.40437684,0.0003763,2]
[404611706,1770327039400,-250.0,0.0003763,2]
[404611707,1770327039410,-250.0,0.0003763,2]
[404611708,1770327039420,-2000.0,0.0003763,2]
[404611709,1770327039430,-217.15233878,0.0003763,2]
[404611710,1770327039441,-250.0,0.0003763,2]
[404611711,1770327039451,-250.0,0.0003763,2]
[404611712,1770327039461,-250.0,0.0003763,2]
[404611713,1770327039471,-2000.0,0.0003763,2]
[404611714,1770327039487,-225.18697532,0.0003763,2]
[404611715,1770327039497,-250.0,0.0003763,2]
[404611716,1770327039507,-253.25015551,0.0003763,2]
[404611717,1770327039517,-233.51889341,0.0003763,2]
[404611718,1770327039527,-2000.0,0.0003763,2]
[404611719,1770327039537,-250.0,0.0003763,2]
[404611720,1770327039547,-250.0,0.0003763,2]
[404611721,1770327039558,-242.15909246,0.0003763,2]
[404611722,1770327039568,-2000.0,0.0003763,2]
[404611723,1770327039578,-250.0,0.0003763,2]
[404611724,1770327039588,-250.0,0.0003763,2]
[404611725,1770327039598,-251.11897888,0.0003763,2]
[404611726,1770327039608,-2000.0,0.0003763,2]
[404611729,1770327039787,-250.0,0.0003763,2]
[404611731,1770327039799,-294.71475661,0.0003763,2]
[404611733,1770327039810,-500.0,0.0003763,2]
[404611735,1770327039821,-500.0,0.0003763,2]
[404611738,1770327039831,-500.0,0.0003763,2]
[404611739,1770327039841,-270.0455652,0.0003763,2]
[404611740,1770327039851,-500.0,0.0003763,2]
[404611741,1770327039861,-386.33014665,0.0003763,2]
[404611742,1770327039871,-280.03725112,0.0003763,2]
[404611743,1770327039881,-290.39862941,0.0003763,2]
[404611744,1770327039891,-250.0,0.0003763,2]
[404611745,1770327039901,-301.1433787,0.0003763,2]
[404611747,1770327039910,-250.0,0.0003763,2]
[404611749,1770327039920,-250.0,0.0003763,2]
[404611750,1770327039930,-250.0,0.0003763,2]
[404611751,1770327039940,-250.0,0.0003763,2]
[404611752,1770327039950,-500.0,0.00037633,15]
[404611753,1770327039961,-342.79901599,0.00037633,15]
[404611754,1770327039971,-1003.76578556,0.00037672,15]
[404611755,1770327039983,-432.0,0.00037937,2]
[404611756,1770327039993,-432.0,0.00038102,120]
[404611757,1770327040002,-200.0,0.00038289,2]
[404611758,1770327040012,-354.04,0.00038356,120]
[404611759,1770327040022,-800.0,0.00038356,30]
[404611760,1770327040032,-432.0,0.0003841,2]
[404611761,1770327040041,-432.0,0.00038514,7]
[404611762,1770327040051,-988.55907766,0.00038593,10]
[404611763,1770327040060,-370.0,0.00038607,2]
[404611764,1770327040073,-7194.80159689,0.00038683,3]
[404611765,1770327040083,-500.0,0.00038692,2]
[404611767,1770327040091,-500.0,0.00038693,120]
[404611769,1770327040100,-500.0,0.00038693,120]
[404611771,1770327040110,-500.0,0.00038693,120]
[404611773,1770327040119,-500.0,0.00038693,120]
[404611775,1770327040129,-500.0,0.00038693,120]
[404611777,1770327040138,-500.0,0.00038693,120]
[404611778,1770327040147,-500.0,0.00038693,120]
[404611781,1770327040157,-648.72,0.00038693,120]
[404611783,1770327040167,-172.29,0.00038693,120]
[404611785,1770327040176,-370.0,0.00038809,120]
[404611787,1770327040186,-370.0,0.00038827,2]
[404611789,1770327040195,-800.0,0.00038904,30]
[404611790,1770327040205,-200.0,0.00038972,2]
[404611792,1770327040215,-3876.0,0.0003899,2]
[404611794,1770327040224,-325.71305907,0.00039011,2]
[404611796,1770327040237,-340.10272265,0.00039118,30]
[404611798,1770327040247,-370.0,0.00039133,2]
[404611801,1770327040256,-474.0,0.00039189,120]
[404611803,1770327040266,-165994.06697238,0.0003926,2]
[404611805,1770327040276,-4445.0804726,0.0003926,2]
[404611806,1770327040286,-344.15242207,0.0003926,2]
[404611808,1770327040295,-370.0,0.00039318,2]
[404611810,1770327040305,-800.0,0.00039396,7]
[404611812,1770327040315,-2803.18833108,0.00039477,2]
[404611814,1770327040324,-1842.29665895,0.00039477,2]
[404611816,1770327040333,-248.20562463,0.00039477,2]
[404611818,1770327040343,-446.77012434,0.00039477,2]
[404611820,1770327040352,-389.17392753,0.00039477,2]
[404611822,1770327040362,-403.40658858,0.00039477,2]
[404611825,1770327040371,-726.13185944,0.00039477,2]
[404611827,1770327040381,-279.73541243,0.00039499,2]
[404611829,1770327040390,-1308.60674436,0.000395,30]
[404611831,1770327040399,-1308.60674434,0.000395,30]
[404611833,1770327040408,-1308.60674434,0.000395,30]
[404611835,1770327040418,-1308.60674434,0.000395,30]
[404611837,1770327040428,-800.0,0.00039513,7]
[404611839,1770327040445,-1041.66666667,0.00039536,10]
[404611841,1770327040455,-7194.80159689,0.00039537,3]
[404611843,1770327040464,-7194.80159689,0.00039546,3]
[404611845,1770327040474,-800.0,0.00039547,7]
[404611847,1770327040488,-38000.0,0.00039547,15]
[404611849,1770327040498,-7194.80159689,0.00039555,3]
[404611850,1770327040507,-220.26,0.00039555,3]
[404611852,1770327040518,-660.79,0.00039555,3]
[404611854,1770327040528,-38000.0,0.00039556,15]
[404611856,1770327040537,-495.40797981,0.00039556,120]
[404611858,1770327040546,-9066.99298838,0.00039556,2]
[404611860,1770327040555,-19801.90049182,0.0003956,2]
[404611862,1770327040565,-7194.80159689,0.00039564,3]
[404611864,1770327040574,-38000.0,0.00039565,15]
[404611867,1770327040583,-7194.80159689,0.00039572,3]
[404611869,1770327040593,-38000.0,0.00039574,15]
[404611871,1770327040603,-7194.80159689,0.00039581,3]
[404611873,1770327040612,-206.67057886,0.00039581,3]
[404611875,1770327040621,-38000.0,0.00039582,15]
[404611876,1770327040631,-14389.6031938,0.0003959,3]
[404611878,1770327040642,-38000.0,0.00039591,15]
[404611880,1770327040651,-38000.0,0.00039591,15]
[404611883,1770327040661,-151.0,0.000396,14]
[404611885,1770327040671,-151.0,0.000396,10]
[404611887,1770327040680,-38000.0,0.000396,15]
[404611889,1770327040689,-151.0,0.000396,15]
[404611890,1770327040699,-151.0,0.000396,13]
[404611893,1770327040708,-38000.0,0.000396,15]
[404611894,1770327040718,-741.26793723,0.000396,3]
[404611896,1770327040732,-2000.0,0.00039607,7]
[404611899,1770327040741,-2000.0,0.0003961,120]
[404611901,1770327040751,-601.43298477,0.00039612,7]
[404611903,1770327040760,-2319.37781235,0.00039612,7]
[404611906,1770327040780,-1524.32926006,0.00039612,7]
[404611908,1770327040791,-227.80607355,0.00039612,7]
[404611910,1770327040801,-800.0,0.00039629,7]
[404611912,1770327040811,-7194.80159689,0.00039633,3]
[404611914,1770327040821,-152.0,0.00039639,14]
[404611916,1770327040831,-151.0,0.00039639,14]
[404611918,1770327040842,-151.0,0.00039639,14]
[404611920,1770327040852,-335.0,0.00039639,14]
[404611922,1770327040862,-317.49080268,0.00039639,14]
[404611924,1770327040872,-152.0,0.00039639,14]
[404611927,1770327040882,-359.85860905,0.00039639,14]
[404611929,1770327040891,-152.0,0.00039639,14]
[404611931,1770327040900,-151.0,0.00039639,14]
[404611933,1770327040910,-152.0,0.00039639,14]
[404611934,1770327040920,-284.56991352,0.00039639,14]
[404611937,1770327040930,-151.0,0.00039639,14]
[404611939,1770327040939,-301.80066623,0.00039639,14]
[404611941,1770327040949,-166.0,0.00039639,14]
[404611943,1770327040959,-627.7830644,0.00039643,2]
[404611945,1770327040969,-826.3756181,0.00039643,2]
[404611947,1770327040983,-164.5712777,0.00039643,2]
[404611949,1770327040992,-2133.2828319,0.00039643,2]
[404611951,1770327041002,-461.2718441,0.00039643,2]
[404611953,1770327041012,-7284.9201053,0.00039643,2]
[404611955,1770327041021,-219.1446387,0.00039643,2]
[404611957,1770327041031,-21854.7603162,0.00039643,2]
[404611959,1770327041040,-1164.6708935,0.00039643,2]
[404611961,1770327041050,-487.0,0.00039643,2]
[404611963,1770327041060,-836.06,0.00039643,2]
[404611965,1770327041069,-487.0,0.00039653,2]
[404611967,1770327041079,-487.0,0.00039653,2]
[404611969,1770327041088,-487.0,0.00039653,2]
[404611971,1770327041098,-487.0,0.00039653,2]
[404611973,1770327041107,-487.0,0.00039653,2]
[404611975,1770327041116,-487.0,0.00039653,2]
[404611977,1770327041126,-487.0,0.00039653,2]
[404611979,1770327041136,-487.0,0.00039653,2]
[404611981,1770327041146,-487.0,0.00039653,2]
[404611983,1770327041155,-487.0,0.00039653,2]
[404611985,1770327041164,-487.0,0.00039653,2]
[404611987,1770327041174,-487.0,0.00039653,2]
[404611989,1770327041183,-487.0,0.00039653,2]
[404611991,1770327041192,-487.0,0.00039653,2]
[404611993,1770327041202,-935.26,0.00039653,2]
[404611995,1770327041212,-2000.0,0.00039654,120]
[404611997,1770327041222,-376.8200359,0.00039655,7]
[404611999,1770327041237,-153.250577,0.00039656,120]
[404612001,1770327041246,-153.250577,0.00039656,120]
[404612003,1770327041255,-153.250577,0.00039656,120]
[404612005,1770327041264,-153.250577,0.00039656,120]
[404612007,1770327041274,-353.673473,0.00039656,120]
[404612009,1770327041283,-353.673473,0.00039656,120]
[404612012,1770327041293,-353.673473,0.00039656,120]
[404612014,1770327041302,-353.673473,0.00039656,120]
[404612016,1770327041311,-200.0,0.00039656,2]
[404612018,1770327041321,-150.0,0.00039656,7]
[404612020,1770327041330,-195.042592,0.00039656,7]
[404612022,1770327041339,-150.0,0.00039656,7]
[404612024,1770327041348,-195.042592,0.00039656,7]
[404612026,1770327041359,-150.0,0.00039656,7]
[404612028,1770327041368,-150.0,0.00039656,7]
[404612030,1770327041378,-195.042592,0.00039656,7]
[404612032,1770327041387,-150.0,0.00039656,7]
[404612034,1770327041396,-195.042592,0.00039656,7]
[404612036,1770327041406,-195.042592,0.00039656,7]
[404612038,1770327041415,-185.7962936,0.00039656,7]
[404612039,1770327041424,-185.7962936,0.00039656,7]
[404612042,1770327041435,-312.984779,0.00039656,7]
[404612044,1770327041447,-605.09057,0.00039656,7]
[404612046,1770327041457,-185.7962936,0.00039656,7]
[404612048,1770327041466,-605.09057,0.00039656,7]
[404612050,1770327041476,-185.7962936,0.00039656,7]
[404612052,1770327041487,-195.042592,0.00039656,7]
[404612053,1770327041496,-195.042592,0.00039656,7]
[404612055,1770327041506,-195.042592,0.00039656,7]
[404612058,1770327041516,-605.09057,0.00039656,7]
[404612060,1770327041526,-605.09057,0.00039656,7]
[404612062,1770327041535,-605.09057,0.00039656,7]
[404612063,1770327041544,-548.8745508,0.00039656,7]
[404612066,1770327041554,-306.0506361,0.00039656,7]
[404612068,1770327041563,-306.0506361,0.00039656,7]
[404612070,1770327041573,-306.0506361,0.00039656,7]
[404612072,1770327041582,-306.0506361,0.00039656,7]
[404612074,1770327041592,-306.0506361,0.00039656,7]
[404612076,1770327041602,-306.0506361,0.00039656,7]
[404612078,1770327041611,-417.791962,0.00039657,120]
[404612080,1770327041621,-417.791962,0.00039657,120]
[404612082,1770327041633,-417.791962,0.00039657,120]
[404612084,1770327041642,-417.791962,0.00039657,120]
[404612086,1770327041651,-151.0,0.00039657,60]
[404612088,1770327041660,-151.0,0.00039657,60]
[404612090,1770327041669,-417.791962,0.00039657,120]
[404612092,1770327041678,-417.791962,0.00039657,120]
[404612094,1770327041687,-417.791962,0.00039657,120]
[404612096,1770327041696,-417.791962,0.00039657,120]
[404612098,1770327041706,-160.800759,0.00039657,120]
[404612100,1770327041715,-2678919.98469598,0.00039657,30]
[404612314,1770327043962,-189.12,0.00030137,2]
[404612316,1770327043971,-250.0,0.0003763,2]
[404612318,1770327043982,-250.0,0.0003763,2]
[404612320,1770327043991,-250.0,0.0003763,2]
[404612322,1770327044000,-250.0,0.0003763,2]
[404612324,1770327044010,-500.0,0.00038693,120]
[404612326,1770327044019,-500.0,0.00038693,120]
[404612328,1770327044029,-306.0506361,0.00039656,7]
[404612330,1770327044039,-306.0506361,0.00039656,7]
[404612332,1770327044048,-306.0506361,0.00039656,7]
[404612334,1770327044061,-306.0506361,0.00039656,7]
[404612336,1770327044070,-311.5843331,0.00039656,7]
[404612339,1770327044081,-277880.27691207,0.00039657,30]
[404612364,1770327044331,-3e-08,0.00039657,30]
[404612423,1770327046327,-250.0,0.0003763,2]
[404612424,1770327046337,-250.0,0.0003763,2]
[404612425,1770327046347,-250.0,0.0003763,2]
[404612426,1770327046357,-534.38,0.00038693,120]
[404612427,1770327046367,-31163.87922487,0.00039657,30]
[404612428,1770327046378,-303.0,0.00039657,30]
[404612430,1770327067281,509.02033208,0.00013699,2]